Cogmind - Beta 13 @@@ ROGUE MODE // 2024.06.30 @ 18:18:06 Player: JackZewap Result: Destroyed by S-27 Virus with Autogun Performance ------------- Evolutions (3) 1500 Regions Visited (4) 800 Robots Destroyed (93) 465 Value Destroyed (2644) 2644 Prototype IDs (0) 0 Alien Tech Used (0) 0 Bonus (0) 0 TOTAL SCORE: 5409 Bonus ------- None Cogmind --------- Core Integrity 0/700 Matter 282/300 Energy 277/300 System Corruption 4% Temperature Cool (0) Movement Core (100) Ox1 Location -7/Factory Parts ------- > --- POWER (1) -------- (None) > --- PROPULSION (2) --- (None) > --- UTILITY (8) ------ Compact Battery Advanced Visual Processing Unit Advanced Targeting Computer Armor Integrity Analyzer > --- WEAPON (2) ------- Power Maul > --- INVENTORY (5) ---- Improved Heat Sink Improved Sensor Array Advanced Terrain Scan Processor Proton Missile Launcher Peak State ------------ > --- POWER ------------ Micro Nuclear Core > --- PROPULSION ------- Medium Treads Medium Treads > --- UTILITY ---------- Advanced Visual Processing Unit Improved Sensor Array Advanced Targeting Computer Advanced Targeting Computer Core Analyzer Improved Light Armor Plating Hacking Suite Hacking Suite > --- WEAPON ----------- Plasma Cannon Flak Gun > --- INVENTORY -------- Compact Battery Advanced Terrain Scan Processor Improved Shield Generator Hacking Suite Hacking Suite [Rating: 46] Favorites ----------- Power Ion Engine Engine Ion Engine Power Core Light Nuclear Core Propulsion Aluminum Leg Treads Improved Treads Leg Aluminum Leg Wheel Armored Huge Wheel Hover Unit Airjet Flight Unit Surge Thruster Utility Hacking Suite Device Seismic Detector Storage Small Storage Unit Processor Advanced Targeting Computer Hackware Hacking Suite Protection Hardened Light Armor Plating Weapon Maul Energy Gun Beam Rifle Energy Cannon Plasma Cannon Ballistic Gun Flak Gun Ballistic Cannon Improved Light Cannon Launcher Rocket Launcher Impact Weapon Maul Slashing Weapon Katana Special Melee Weapon Datajack Build | -11 -10 -9 -8 -7 ------- Run | Yrd Mat Mat Mat Fac Slots Evolved 6 | . . 2 2 2 Power . | . . . . . Propulsion . | . . . . . Utility 6 | . . 2 2 2 Weapon . | . . . . . Parts Attached 120 | 6 14 44 23 33 Power 18 | 1 1 9 3 4 Engine 12 | 1 1 9 1 . Core 6 | . . . 2 4 Reactor . | . . . . . Propulsion 28 | 2 3 11 3 9 Treads 8 | . . 5 . 3 Leg 13 | 2 3 6 2 . Wheel 1 | . . . 1 . Hover 2 | . . . . 2 Flight 4 | . . . . 4 Utility 36 | 1 2 10 10 13 Device 12 | . . 2 6 4 Storage 5 | 1 . 1 . 3 Processor 7 | . 1 . 3 3 Hackware 4 | . . 2 . 2 Protection 8 | . 1 5 1 1 Artifact . | . . . . . Weapon 38 | 2 8 14 7 7 Energy Gun 13 | 2 3 3 5 . Energy Cannon 2 | . . . . 2 Ballistic Gun 4 | . . 2 . 2 Ballistic Cannon 2 | . 2 . . . Launcher 3 | . . . 2 1 Special Weapon . | . . . . . Impact Weapon 9 | . 3 4 . 2 Slashing Weapon 2 | . . 2 . . Piercing Weapon . | . . . . . Special Melee Weapon 3 | . . 3 . . Unidentified Prototypes . | . . . . . Parts Lost 35 | . . 12 7 16 Power 6 | . . 4 1 1 Propulsion 8 | . . 3 1 4 Utility 14 | . . 3 3 8 Weapon 7 | . . 2 2 3 Highest Loss Streak 10 | . . 4 6 10 To Critical Strikes . | . . . . . Average Slot Usage (%) 93 | . 98 96 90 81 Engine 8 | . 14 10 3 . Core 1 | . . . 5 3 Treads 6 | . . 10 . 7 Leg 12 | . 28 10 9 . Device 6 | . . 6 16 5 Storage 8 | . 14 10 . 3 Processor 6 | . 2 . 7 27 Hackware 10 | . . 11 18 15 Protection 10 | . 11 14 7 2 Energy Gun 4 | . 8 1 13 . Ballistic Gun 2 | . . 1 3 4 Ballistic Cannon 1 | . 5 . . . Impact Weapon 7 | . 12 11 . . Special Melee Weapon 2 | . . 4 . . Naked Turns . | . . . . . Heaviest Build 40 | 14 23 24 24 40 Greatest Support 56 | 20 20 46 34 56 Greatest Overweight (x) 7 | . 1 7 1 3 Average Overweight (x) . | . . . . . Largest Inventory Capacity 15 | 8 8 8 5 15 Average Capacity 7 | 7 8 7 5 7 Most Carried 8 | . 8 8 5 7 Average Carried 6 | . 7 6 4 4 Final Capacity 8 | 8 8 5 5 5 Final Carried 8 | . 8 2 4 4 Class Distribution -------------------- 45% | Mutant 33% | Scavenger-Mutant 18% | Hacker-Mutant Dominant Class ---------------- Mutant | -10/Materials Mutant | -9/Materials Scavenger-Mutant | -8/Materials Hacker-Mutant | -7/Factory Resources | -11 -10 -9 -8 -7 ----------- Run | Yrd Mat Mat Mat Fac Matter Collected 1600 | 246 242 413 269 430 Remotely . | . . . . . Salvage Created 2864 | . 507 1266 647 444 Parts 140 | . 24 50 43 23 Haulers Intercepted 8 | . 1 5 2 . Recyclers Shooed . | . . . . . Parts Field Recycled . | . . . . . Retrieved Matter . | . . . . . Parts Self-Destructed . | . . . . . Prevented . | . . . . . Kills | -11 -10 -9 -8 -7 ------- Run | Yrd Mat Mat Mat Fac Combat Hostiles Destroyed 64 | . 14 24 14 12 Melee 17 | . 2 15 . . Guns 20 | . 4 1 10 5 Cannons 8 | . 5 . . 3 AOE 6 | . . . 3 3 Classes Destroyed 13 | . 6 4 2 1 Worker 3 | . 2 1 . . Builder 3 | . . 1 1 1 Tunneler 1 | . . . 1 . Hauler 8 | . 1 5 2 . Recycler 1 | . . 1 . . Operator 7 | . 2 3 1 1 Watcher 6 | . 2 3 1 . Swarmer 15 | . 5 3 3 4 Cutter 1 | . . . 1 . Grunt 34 | . 9 11 8 6 Duelist 2 | . . 2 . . Sentry 11 | . . 8 2 1 Programmer 1 | . . . . 1 Best Kill Streak 5 | . 3 4 5 4 Combat Bots Only 4 | . 3 3 4 3 Max Kills in Single Turn 3 | . 1 1 3 2 Gunslinging 1 | . . . 1 . Exploded 2 | . . . 2 2 Melee 1 | . 1 1 . . Uniques/NPCs Destroyed . | . . . . . Combat | -11 -10 -9 -8 -7 -------- Run | Yrd Mat Mat Mat Fac Hostile Shots Fired 570 | . 68 175 100 227 Missed 171 | . 17 38 32 84 Damage Taken 5893 | . 516 1925 1520 1932 Core 1578 | . 101 288 488 701 Absorbed by Shields 42 | . . . . 42 Redirected to Shielding 25 | . . 25 . . Core Remaining (%) 49 | 100 59 28 11 . Volleys Fired 127 | . 36 2 56 33 Largest 2 | . 2 2 2 2 Hottest 121 | . 100 73 121 108 Shots Fired 204 | . 62 4 92 46 Gun 158 | . 40 4 86 28 Cannon 39 | . 22 . . 17 Launcher 7 | . . . 6 1 Special . | . . . . . Kinetic 63 | . 22 2 11 28 Thermal 128 | . 40 2 75 11 Explosive 6 | . . . 6 . Electromagnetic 7 | . . . . 7 Robot Hit Streak 19 | . 8 3 17 19 Robot Miss Streak 9 | . 3 2 9 4 Penetration Max . | . . . . . Secondary Targets 2 | . 1 . 1 . Max Gunslinging Chain 1 | . 1 . 1 . Shots Hit Robots 255 | . 62 94 56 43 Core Hits 128 | . 20 21 43 44 Critical Kills 6 | . . 6 . . Critical Parts Destroyed 18 | . . 15 . 3 Critical Strikes 33 | . 3 23 4 3 Burn 5 | . 1 . 4 . Blast 2 | . 2 . . . Smash 24 | . . 21 . 3 Sever 2 | . . 2 . . Melee Attacks 160 | . 31 116 . 13 Impact 147 | . 31 103 . 13 Slashing 7 | . . 7 . . Piercing . | . . . . . Sneak Attacks 24 | . 4 20 . . Combat Hostiles . | . . . . . Follow-up Attacks 10 | . 2 8 . . Damage Inflicted 8473 | . 1575 3942 1606 1350 Guns 1835 | . 364 40 906 525 Cannons 537 | . 217 . . 320 Explosions 955 | . . . 700 255 Melee 5140 | . 991 3902 . 247 Ramming 6 | . 3 . . 3 Kinetic 831 | . 217 13 76 525 Thermal 1528 | . 364 27 830 307 Explosive 756 | . . . 700 56 Electromagnetic 212 | . . . . 212 Impact 4881 | . 991 3643 . 247 Slashing 259 | . . 259 . . Piercing . | . . . . . Highest Corruption 4 | . 1 . 1 4 Average Corruption 1 | . 1 . 1 3 Corruption Purged . | . . . . . Corruption Blocked . | . . . . . Effects 11 | . 7 . . 4 Message Errors 4 | . 2 . . 2 Matter Fused 1 | . . . . 1 Parts Rejected 1 | . 1 . . . Parts Fused 1 | . . . . 1 Data Loss (minor) 2 | . 2 . . . Data Loss (major) 1 | . 1 . . . Alerts 1 | . 1 . . . Overload Shots . | . . . . . Overflow Damage 1349 | . 176 1039 9 125 Projectiles 5 | . 5 . . . Explosions 9 | . . . 9 . Melee 1335 | . 171 1039 . 125 Knockbacks 19 | . 10 8 . 1 Impact 16 | . 7 8 . 1 Kinetic 3 | . 3 . . . Secondary . | . . . . . Self-Inflicted Damage . | . . . . . Shots . | . . . . . Rammed 1 | . . . . 1 Targets Rammed 2 | . 1 . . 1 Kicked 1 | . 1 . . . Crushed . | . . . . . Highest Temperature 374 | . 374 68 186 180 Average Temperature 83 | . 115 36 45 47 Received Heat Transfer 1686 | . 210 588 405 483 Effects 2 | . 2 . . . Interference 1 | . 1 . . . Short Circuit 1 | . 1 . . . Siege Activations . | . . . . . Robots Corrupted . | . . . . . Combat Hostiles . | . . . . . Parts Fried 38 | . 9 29 . . Impact Corruptions 58 | . 12 40 . 6 Robots Melted 1 | . . . 1 . Combat Hostiles 1 | . . . 1 . Parts Melted 11 | . 5 . 5 1 Heat Transferred 3767 | . 1147 74 2146 400 Parts Sabotaged . | . . . . . Parts Stolen . | . . . . . Parts Stripped . | . . . . . Power Chain Reactions 1 | . . . . 1 Alert | -11 -10 -9 -8 -7 ------- Run | Yrd Mat Mat Mat Fac Peak Influence 426 | . 289 390 386 426 Initial 161 | . . 79 11 161 Average 183 | . 140 198 145 241 Maximum Alert Level 2 | . 1 1 1 2 Low Security (%) 58 | 100 78 61 59 24 Level 1 39 | . 21 38 40 68 Level 2 1 | . . . . 7 Level 3 . | . . . . . Level 4 . | . . . . . Level 5 . | . . . . . High Security . | . . . . . Max Security . | . . . . . Squads Dispatched 20 | . 4 4 5 7 Investigation 6 | . 2 2 1 1 Extermination 1 | . . . . 1 Reinforcement 10 | . 2 2 4 2 Assault . | . . . . . Garrison 3 | . . . . 3 Intercept . | . . . . . Searches Triggered . | . . . . . Construction Impeded 1 | . . . . 1 Haulers Reinforced . | . . . . . Active Scanning Responses . | . . . . . Cargo Convoy Interrupts . | . . . . . Stealth | -11 -10 -9 -8 -7 --------- Run | Yrd Mat Mat Mat Fac Distress Signals 6 | . 3 2 . 1 Communications Jammed . | . . . . . Distress Signals . | . . . . . Times Spotted 126 | . 29 35 27 35 Peak Tracking Total 11 | . 6 5 4 11 Tactical Retreats 10 | . 2 3 1 4 Traps | -11 -10 -9 -8 -7 ------- Run | Yrd Mat Mat Mat Fac Traps Triggered 6 | . 1 2 2 1 Indirectly . | . . . . . Trap Hack Attempts . | . . . . . Triggered . | . . . . . Disarmed . | . . . . . Reprogrammed . | . . . . . Reused . | . . . . . Traps Extracted . | . . . . . Installed . | . . . . . Triggered . | . . . . . Machines | -11 -10 -9 -8 -7 ---------- Run | Yrd Mat Mat Mat Fac Machines Disabled 11 | . . . 4 7 Max in Single Turn 4 | . . . 1 4 Garrison Access 1 | . . . . 1 Machines Repaired . | . . . . . Machines Dismantled . | . . . . . Machines Sabotaged . | . . . . . Overloaded Fab Kills . | . . . . . Hacking | -11 -10 -9 -8 -7 --------- Run | Yrd Mat Mat Mat Fac Machines Accessed 14 | . 4 6 2 2 Terminals 11 | . 3 6 2 . Fabricators . | . . . . . Repair Stations 1 | . . . . 1 Recycling Units 1 | . 1 . . . Scanalyzers . | . . . . . Garrison Access 1 | . . . . 1 Total Hacks 40 | . 11 20 6 3 Successful 21 | . 4 11 5 1 Failed 19 | . 7 9 1 2 Catastrophic 3 | . . 2 . 1 Database Lockouts . | . . . . . Manual 35 | . 12 17 6 . Terminals 34 | . 8 20 6 . Fabricators . | . . . . . Repair Stations 2 | . . . . 2 Recycling Units 3 | . 3 . . . Scanalyzers . | . . . . . Garrison Access 1 | . . . . 1 Terminal Hacks 8 | . . 6 2 . Record 1 | . . 1 . . Robot Analysis 1 | . . 1 . . Terminal Index 1 | . . . 1 . Alert Level 1 | . . 1 . . Unreport Threat 2 | . . 2 . . Recall Reinforcements 1 | . . . 1 . Registered Components 1 | . . 1 . . Fabricator Hacks . | . . . . . Repair Station Hacks . | . . . . . Recycling Unit Hacks 1 | . 1 . . . Retrieve Components 1 | . 1 . . . Scanalyzer . | . . . . . Garrison Access Hacks 1 | . . . . 1 Seal Access 1 | . . . . 1 Unauthorized Hacks 11 | . 3 5 3 . Terminals 10 | . 2 5 3 . Botnet 7 | . 1 4 2 . Operators 3 | . 1 1 1 . Fabricators . | . . . . . Repair Stations . | . . . . . Recycling Units 1 | . 1 . . . Reject 1 | . 1 . . . Scanalyzers . | . . . . . Garrison Access . | . . . . . Data Cores Recovered 1 | . . 1 . . Used . | . . . . . Hacking Detections 11 | . 3 5 2 1 Full Trace Events 4 | . 2 1 . 1 Feedback Events 1 | . 1 . . . Corruption 1 | . 1 . . . Feedback Blocked . | . . . . . Robot Schematics Acquired . | . . . . . Robots Built . | . . . . . Authchips . | . . . . . Time . | . . . . . Total Robot Build Rating . | . . . . . Part Schematics Acquired . | . . . . . Parts Built . | . . . . . Authchips . | . . . . . Time . | . . . . . Total Part Build Rating . | . . . . . Parts Repaired . | . . . . . Time . | . . . . . Parts Recycled . | . . . . . Recycled Matter . | . . . . . Retrieved Matter . | . . . . . Retrieved Components 2 | . 2 . . . Parts Scanalyzed . | . . . . . Part Schematics Acquired . | . . . . . Parts Damaged . | . . . . . Bothacking | -11 -10 -9 -8 -7 ------------ Run | Yrd Mat Mat Mat Fac Used RIF Installer . | . . . . . Robots Hacked 4 | . . 4 . . Non-combat 4 | . . 4 . . Combat . | . . . . . Robot Hacks Applied 4 | . . 4 . . no_distress 4 | . . 4 . . Relay Couplers Released . | . . . . . Fabnet Peak Effective % . | . . . . . Robots Rewired . | . . . . . Allies Hacked . | . . . . . Hacks Repelled . | . . . . . Allies | -11 -10 -9 -8 -7 -------- Run | Yrd Mat Mat Mat Fac Total Allies . | . . . . . Largest Group . | . . . . . Highest-Rated Group . | . . . . . Highest-Rated Ally . | . . . . . Total Orders . | . . . . . Ally Attacks . | . . . . . Total Damage . | . . . . . Kills . | . . . . . Allies Corrupted . | . . . . . Allies Melted . | . . . . . Intel | -11 -10 -9 -8 -7 ------- Run | Yrd Mat Mat Mat Fac Robot Analysis Total 1 | . . 1 . . Derelict Logs Recovered . | . . . . . Drone Launches . | . . . . . Drone Recoveries . | . . . . . Exploration | -11 -10 -9 -8 -7 ------------- Run | Yrd Mat Mat Mat Fac Turns Passed 4630 | 45 991 2027 750 817 Spaces Moved 2807 | 32 542 1024 431 778 Core 162 | 3 . 1 13 145 Treads 788 | . . 589 . 199 Legs 1201 | 29 542 434 196 . Wheels 222 | . . . 222 . Hover 229 | . . . . 229 Flight 205 | . . . . 205 Fastest Speed 32 | 50 120 120 50 32 Average Speed 118 | 113 127 149 107 77 Slowest Speed 400 | 120 190 400 190 240 Overloaded Moves . | . . . . . Propulsion Burnouts . | . . . . . Robots Hopped 2 | . . . . 2 Cave-ins Triggered . | . . . . . Exploration Rate (%) 42 | 4 56 83 43 28 Regions Visited 4 Branch Regions . Pre-discovered Areas . | . . . . . Known Exits Taken 1 | . 1 . . . Unknown Exits Taken 3 | 1 . 1 1 . Scrap Searched . | . . . . . Spaces Dug 3 | . 1 1 . 1 Terrain Destroyed 89 | . 2 1 31 55 Melee 3 | . 1 1 . 1 Projectile 1 | . 1 . . . AOE 85 | . . . 31 54 Terrain Rammed . | . . . . . Walls Destroyed . | . . . . . Machines Disabled . | . . . . . Actions | -11 -10 -9 -8 -7 --------- Run | Yrd Mat Mat Mat Fac Total 3617 | 37 726 1309 627 918 Wait 302 | . 84 98 90 30 Move 2800 | 31 541 1023 430 775 Hop 1 | . . . . 1 Pick Up 40 | . 12 9 7 12 Fast Attach 60 | 6 5 18 13 18 Attach 27 | . 1 13 1 12 Detach 18 | . 2 9 1 6 Swap 33 | . 8 13 9 3 Drop 62 | . 10 18 20 14 Fire 127 | . 36 2 56 33 Melee 145 | . 26 106 . 13 Ram . | . . . . . Kick 1 | . 1 . . . Crush 1 | . . . . 1 Escape Stasis . | . . . . . Rewire . | . . . . . Trap . | . . . . . Miscellaneous . | . . . . . Route ------- -11/Scrapyard -10/Materials (discovered 2 exits: *Mat / *Min) -9/Materials (discovered 4 exits: *Mat x3 / [*Min]) -8/Materials -7/Factory History --------- Turn | Location | Event 25 | -11/Scrapyard | Discovered new exit (range 16) 46 | -11/Scrapyard | Entered Materials 280 | -10/Materials | Discovered new exit (range 9) 310 | -10/Materials | Build established: Mutant 464 | -10/Materials | Discovered new exit (range 4) 935 | -10/Materials | Identified exit to Mines 1027 | -10/Materials | Identified exit to Materials 1037 | -10/Materials | Entered another Materials area 1037 | -9/Materials | Evolved 2 slots: Utility x2 1220 | -9/Materials | Discovered new exit (range 14) 2061 | -9/Materials | Discovered new exit (range 7) 2241 | -9/Materials | Core integrity fell below 50% 2267 | -9/Materials | Lost 4 parts (1p2u1w) 2513 | -9/Materials | Build established: Scavenger-Mutant 2611 | -9/Materials | Discovered new exit (range 5) 2690 | -9/Materials | Lost 3 parts (1p1u1w) 3046 | -9/Materials | Discovered new exit (range 16) 3064 | -9/Materials | Entered another Materials area 3064 | -8/Materials | Evolved 2 slots: Utility x2 3800 | -8/Materials | Core integrity fell below 50% 3809 | -8/Materials | Discovered new exit (range 5) 3813 | -8/Materials | Core integrity fell below 20% 3814 | -8/Materials | Entered Factory 3814 | -7/Factory | Evolved 2 slots: Utility x2 3839 | -7/Factory | Lost 6 parts (1p1n2u2w) 4019 | -7/Factory | Build established: Hacker-Mutant 4309 | -7/Factory | Garrison activated, responded to threat 4454 | -7/Factory | Core integrity fell below 50% 4474 | -7/Factory | Lost 10 parts (1p2n4u3w) 4549 | -7/Factory | Core integrity fell below 20% 4557 | -7/Factory | Lost 3 parts (2n1u) 4631 | -7/Factory | Destroyed by S-27 Virus with Autogun Last Messages --------------- 04551_ Destroyed Gravmag System. 04551_ P-60 Hacker system corrupted by crushing effect. 04560_ P-60 Hacker suffers critical hit (Smash). 04560_ Destroyed Remote Datajack. 04560_ Destroyed Target Analyzer. 04560_ P-60 Hacker system corrupted by crushing effect. 04561_ P-60 Hacker system terminally corrupted. 04563_ Acquired 31 matter. 04572_ Imp. Terrain Scanner destroyed. 04572_ K-01 Serf collects debris. 04578_ W-25 Informer sends out distress signal. 04583_ =ZUTCFKPYX3/AADAEMSI:C:Z% 04588_ R-06 Scavenger collects Lgt. Nuclear Core. 04605_ Triggered Proton Bomb Trap. 04605_ A bubble of electromagnetic force engulfs the area. 04605_ Terminal disabled. 04605_ Door malfunctions. 04609_ System corrupted: Matter fused (-10). 04615_ Hacking Suite destroyed. 04628_ 8CNGVXY9/LTQ75 U%GJT